bitfinex-derivatives/quotes_BTCF0:USTF0_20241214
["timestamp","ask_amount","ask_price","bid_price","bid_amount"]
[1734183081385,0.410229,101140.0,101130.0,0.78896353]
[1734183082173,0.410229,101140.0,101130.0,0.60215322]
[1734183083377,0.410229,101140.0,101130.0,0.55272022]
[1734183084382,0.410229,101140.0,101130.0,0.90705927]
[1734183085071,0.410229,101140.0,101130.0,0.55272022]
[1734183085277,0.410229,101140.0,101130.0,0.60215322]
[1734183086080,0.410229,101140.0,101130.0,0.60270159]
[1734183086274,0.410229,101140.0,101130.0,0.60270489]
[1734183086469,0.410229,101140.0,101130.0,0.55327189]
[1734183086665,0.56454129,101140.0,101130.0,0.69154253]
[1734183086871,0.86454129,101140.0,101130.0,0.33085167]
[1734183087077,0.98203491,101140.0,101130.0,0.33085167]
[1734183087379,0.98203491,101140.0,101130.0,0.17758149]
[1734183087573,1.12890193,101140.0,101130.0,0.17758149]
[1734183088572,1.01140831,101140.0,101130.0,0.17758149]
[1734183088776,0.14375029,101120.0,101110.0,0.0005]
[1734183089074,0.86535029,101120.0,101110.0,0.25115035]
[1734183089783,0.86535029,101120.0,101110.0,0.25065035]
[1734183089964,0.771038,101120.0,101110.0,0.25065035]
[1734183090171,0.771038,101120.0,101110.0,0.29229843]
[1734183090368,0.771038,101120.0,101110.0,0.41635452]
[1734183090568,0.771038,101120.0,101110.0,0.77069357]
[1734183090770,0.771038,101120.0,101110.0,0.86550586]
[1734183091278,0.771038,101120.0,101110.0,1.06060559]
[1734183091573,0.771038,101120.0,101110.0,0.24331152]
[1734183091574,0.86535029,101120.0,101110.0,0.24331152]
[1734183091778,0.86535029,101120.0,101110.0,0.24281152]
[1734183091973,0.049443,101110.0,101100.0,1.96378605]
[1734183092172,0.410243,101110.0,101100.0,2.20685567]
[1734183092877,0.410243,101110.0,101100.0,2.20735567]
[1734183093880,0.410243,101110.0,101100.0,2.20685567]
[1734183094880,0.410243,101110.0,101100.0,2.49705589]
[1734183095180,0.410243,101110.0,101100.0,2.20735567]
[1734183096381,0.47851353,101130.0,101100.0,2.75678025]
[1734183096678,0.47851353,101130.0,101120.0,0.049437]
[1734183096679,0.410234,101130.0,101120.0,0.049437]
[1734183096871,0.049434,101130.0,101120.0,0.64684567]
[1734183097069,0.049434,101130.0,101120.0,1.79250662]
[1734183097275,0.049434,101130.0,101120.0,2.14684567]
[1734183097571,0.049434,101130.0,101120.0,2.43654589]
[1734183098977,0.3608,101140.0,101120.0,2.14684567]
[1734183099178,0.41023,101140.0,101120.0,2.48598089]
[1734183099379,0.41023,101140.0,101120.0,2.43654389]
[1734183099577,0.41023,101140.0,101120.0,2.55824389]
[1734183099777,0.41023,101140.0,101120.0,2.65255618]
[1734183100085,0.04943,101140.0,101130.0,0.049433]
[1734183100277,0.04943,101140.0,101130.0,0.35400262]
[1734183100478,0.535725,101150.0,101130.0,0.75322096]
[1734183100778,0.535725,101150.0,101140.0,0.049429]
[1734183100779,0.535225,101150.0,101140.0,0.049429]
[1734183101083,0.535225,101150.0,101140.0,0.29255308]
[1734183101277,0.535225,101150.0,101140.0,0.049429]
[1734183101976,0.535725,101150.0,101140.0,0.049429]
[1734183102582,0.535725,101150.0,101140.0,1.549429]
[1734183102782,0.535225,101150.0,101140.0,1.549429]
[1734183103079,0.410225,101150.0,101140.0,1.549429]
[1734183103284,0.3608,101150.0,101140.0,1.64374129]
[1734183103586,0.5302046,101160.0,101150.0,0.049424]
[1734183103886,0.4682046,101160.0,101150.0,0.049424]
[1734183105679,0.0014836,101160.0,101150.0,0.14373629]
[1734183105885,0.0014836,101160.0,101150.0,0.20493629]
[1734183106081,0.0014836,101160.0,101150.0,0.44783782]
[1734183107082,0.0014836,101160.0,101150.0,0.4478435]
[1734183107790,0.0514026,101160.0,101150.0,0.4478435]
[1734183107992,0.4122026,101160.0,101150.0,0.24290721]
[1734183108286,0.4122026,101160.0,101140.0,2.02762705]
[1734183108287,0.56581489,101160.0,101140.0,0.57649205]
[1734183108488,0.4715026,101160.0,101140.0,0.46499311]
[1734183108677,0.4715026,101160.0,101150.0,0.049424]
[1734183108881,0.4710026,101160.0,101150.0,0.049424]
[1734183109789,0.4715026,101160.0,101150.0,0.049424]
[1734183109991,0.049424,101150.0,101140.0,0.111726]
[1734183111377,0.410224,101150.0,101140.0,0.049426]
[1734183111788,0.049429,101140.0,101130.0,1.549433]
[1734183111990,0.471729,101140.0,101130.0,1.5]
[1734183112189,0.049433,101130.0,101120.0,0.106137]
[1734183112386,0.410233,101130.0,101120.0,0.20044929]
[1734183112587,0.410233,101130.0,101120.0,1.70044929]
[1734183116193,0.410233,101130.0,101120.0,1.94277026]
[1734183116892,0.410233,101130.0,101120.0,2.23798384]
[1734183117193,0.410233,101130.0,101120.0,1.99566287]
[1734183117397,0.410233,101130.0,101120.0,2.23808321]
[1734183119494,0.410233,101130.0,101120.0,2.23748389]
[1734183119795,0.41023,101140.0,101130.0,0.049433]
[1734183119990,0.41023,101140.0,101130.0,0.20074529]
[1734183120186,0.3608,101140.0,101130.0,0.20074529]
[1734183120393,0.111125,101150.0,101130.0,2.01211229]
[1734183120598,0.049425,101150.0,101140.0,0.14374129]
[1734183120888,0.049425,101150.0,101140.0,0.049429]
[1734183120889,0.410225,101150.0,101140.0,0.049429]
[1734183121094,0.049425,101150.0,101140.0,0.049429]
[1734183122392,0.049425,101150.0,101140.0,0.14374129]
[1734183122592,0.410225,101150.0,101140.0,0.049429]
[1734183123296,0.049425,101150.0,101140.0,0.58659692]
[1734183124089,0.410225,101150.0,101140.0,0.58659692]
[1734183124313,0.049425,101150.0,101140.0,0.68090921]
[1734183124794,0.410219,101160.0,101150.0,0.049424]
[1734183124994,0.410219,101160.0,101150.0,0.68100211]
[1734183125497,0.410219,101160.0,101150.0,0.74180211]
[1734183125901,0.410719,101160.0,101150.0,2.14748982]
[1734183126207,0.410719,101160.0,101150.0,2.14731923]
[1734183127004,0.049419,101160.0,101150.0,2.95677057]
[1734183127502,0.3608,101170.0,101160.0,0.049419]
[1734183127712,0.3608,101170.0,101160.0,0.74041602]
[1734183128003,0.3613,101170.0,101160.0,0.74041602]
[1734183128603,0.3613,101170.0,101160.0,0.49853437]
[1734183128809,0.3608,101170.0,101160.0,0.49853437]
[1734183129105,0.410214,101170.0,101160.0,0.64588083]
[1734183129307,0.410214,101170.0,101160.0,0.40422208]
[1734183129903,0.410714,101170.0,101160.0,0.108619]
[1734183130908,0.410214,101170.0,101160.0,0.108619]
[1734183131805,0.410714,101170.0,101160.0,0.049419]
[1734183132908,0.410214,101170.0,101160.0,0.049419]
[1734183133911,0.410714,101170.0,101160.0,0.14373129]
[1734183134403,0.410714,101170.0,101160.0,0.20133129]
[1734183134804,0.410214,101170.0,101160.0,0.20133129]
[1734183135003,0.3608,101170.0,101160.0,0.20133129]
[1734183135406,0.3608,101170.0,101160.0,0.49693437]
[1734183135599,0.3608,101170.0,101160.0,0.55593437]
[1734183135803,0.3613,101170.0,101160.0,0.79821115]
[1734183136005,0.0005,101170.0,101160.0,0.55593437]
[1734183136202,0.0005,101170.0,101160.0,0.79819987]
[1734183136804,0.524311,101180.0,101160.0,0.74878087]
[1734183137003,0.524311,101180.0,101170.0,0.049414]
[1734183138699,0.049414,101170.0,101160.0,0.34502108]
[1734183138901,0.410714,101170.0,101160.0,0.049418]
[1734183139310,0.410714,101170.0,101150.0,2.6319518]
[1734183139311,0.45561229,101170.0,101150.0,2.6319518]
[1734183139506,0.50453129,101160.0,101150.0,1.80659075]
[1734183139712,0.67453129,101160.0,101150.0,0.29560308]
[1734183140004,0.580219,101160.0,101140.0,0.48876437]
[1734183140311,0.580219,101160.0,101150.0,1.5]
[1734183140513,0.580219,101160.0,101150.0,0.049424]
[1734183141111,0.59262109,101170.0,101160.0,0.049419]
[1734183141112,0.4983098,101170.0,101160.0,0.049419]
[1734183141313,0.410215,101170.0,101160.0,0.14373129]
[1734183141509,0.049415,101170.0,101160.0,0.14373129]
[1734183141711,0.410215,101170.0,101160.0,0.5871412]
[1734183141910,0.410215,101170.0,101160.0,0.049419]
[1734183142511,0.049415,101170.0,101160.0,0.049419]
[1734183143405,0.049415,101170.0,101160.0,0.34502208]
[1734183143606,0.049415,101170.0,101160.0,0.58700023]
[1734183143806,0.049415,101170.0,101160.0,0.049419]
[1734183144004,0.049415,101170.0,101160.0,0.34502208]
[1734183145013,0.410215,101170.0,101160.0,0.34502208]
[1734183145212,0.410215,101170.0,101160.0,0.049419]
[1734183146316,0.410215,101170.0,101160.0,0.34502208]
[1734183146519,0.410215,101170.0,101160.0,2.08730155]
[1734183146723,0.410215,101170.0,101160.0,1.84502208]
[1734183146904,0.410215,101170.0,101160.0,2.08142506]
[1734183147107,0.410215,101170.0,101160.0,2.17573735]
[1734183147311,0.410215,101170.0,101160.0,2.4166476]
[1734183147511,0.410215,101170.0,101160.0,2.32233531]
[1734183147912,0.049415,101170.0,101160.0,2.32233531]
[1734183148115,0.410215,101170.0,101160.0,2.32233531]
[1734183148316,0.410215,101170.0,101160.0,2.08593233]
[1734183148516,0.410215,101170.0,101160.0,2.18024462]
[1734183151112,0.410215,101170.0,101160.0,2.13082562]
[1734183151314,0.410215,101170.0,101160.0,2.18024462]
[1734183152320,0.4983098,101170.0,101160.0,2.18024462]
[1734183153218,0.1375098,101170.0,101160.0,2.18024462]
[1734183153423,0.4983098,101170.0,101160.0,2.03700356]
[1734183153813,0.4983098,101170.0,101160.0,2.08642256]
[1734183154409,0.4983098,101170.0,101160.0,2.08778829]
[1734183155523,0.4983098,101170.0,101160.0,2.18210058]
[1734183155723,0.4983098,101170.0,101160.0,1.88600727]
[1734183156314,0.4983098,101170.0,101160.0,2.24034632]
[1734183158527,0.4983098,101170.0,101160.0,2.24119698]
[1734183158818,0.59262209,101170.0,101160.0,2.38726333]
[1734183159015,0.65292209,101170.0,101160.0,2.68353482]
[1734183159218,0.77063562,101170.0,101160.0,0.53939813]
[1734183159417,0.77063562,101170.0,101160.0,0.77640442]
[1734183159625,0.88793474,101170.0,101160.0,1.73700629]
[1734183160026,0.88793474,101170.0,101160.0,0.23700629]
[1734183160425,0.049419,101160.0,101150.0,2.03327778]
[1734183160632,0.73446413,101160.0,101150.0,2.27610527]
[1734183160823,0.82877642,101160.0,101150.0,2.27610527]
[1734183161322,0.88725267,101160.0,101150.0,0.23700629]
[1734183161524,0.76939831,101160.0,101140.0,0.53327778]
[1734183161819,0.67528415,101150.0,101140.0,2.27581177]
[1734183162127,0.67528415,101150.0,101140.0,2.27631177]
[1734183162320,0.55747835,101150.0,101140.0,0.23750629]
[1734183163023,0.55747835,101150.0,101140.0,0.23700629]
[1734183163418,0.49857835,101150.0,101140.0,0.38074758]
[1734183163619,0.410224,101150.0,101140.0,0.91910864]
[1734183163814,0.410224,101150.0,101140.0,0.91960864]
[1734183164328,0.049424,101150.0,101140.0,0.91960864]
[1734183164531,0.049424,101150.0,101140.0,0.68260235]
[1734183164822,0.410224,101150.0,101140.0,0.68210235]
[1734183165027,0.410224,101150.0,101140.0,0.91872013]
[1734183165928,0.3608,101150.0,101140.0,0.68260235]
[1734183166428,0.3608,101150.0,101140.0,1.0369414]
[1734183166627,0.41022,101160.0,101140.0,0.9875124]
[1734183166825,0.41022,101160.0,101150.0,0.49611116]
[1734183167027,0.04942,101160.0,101150.0,0.49611116]
[1734183167228,0.04942,101160.0,101150.0,1.03425431]
[1734183167929,0.04942,101160.0,101150.0,0.79767944]
[1734183169329,0.04942,101160.0,101150.0,1.15201849]
[1734183169825,0.04942,101160.0,101150.0,1.21250267]
[1734183170032,0.04942,101160.0,101150.0,2.71250267]
[1734183172121,0.04942,101160.0,101150.0,2.71194004]
[1734183173435,0.04942,101160.0,101150.0,2.77703118]
[1734183173632,0.04942,101160.0,101150.0,2.42719953]
[1734183173828,0.526917,101170.0,101160.0,0.049419]
[1734183174027,0.526917,101170.0,101160.0,0.91809996]
[1734183174338,0.61527135,101170.0,101160.0,0.67604412]
[1734183174636,0.526917,101170.0,101160.0,0.38031477]
[1734183175642,0.526917,101170.0,101160.0,0.67604412]
[1734183175936,0.526917,101170.0,101160.0,0.38031477]
[1734183176340,0.526917,101170.0,101160.0,0.67604412]
[1734183176734,0.526917,101170.0,101160.0,0.91819513]
[1734183176932,0.526917,101170.0,101160.0,0.67604412]
[1734183177138,0.526917,101170.0,101160.0,0.91805491]
[1734183177640,0.410217,101170.0,101160.0,0.91805491]
[1734183178138,0.3608,101170.0,101160.0,0.91805491]
[1734183178339,0.61835453,101180.0,101170.0,0.049414]
[1734183178533,0.50054873,101180.0,101170.0,0.38030977]
[1734183178938,0.50054873,101180.0,101170.0,1.88030977]
[1734183179632,0.41219438,101180.0,101170.0,2.17603912]
[1734183180341,0.59486102,101180.0,101170.0,2.03231283]
[1734183180642,0.59486102,101180.0,101170.0,0.23658348]
[1734183180833,0.61835453,101180.0,101170.0,0.23658348]
[1734183181037,0.049414,101170.0,101160.0,0.58173083]
[1734183181230,0.410214,101170.0,101160.0,0.82391038]
[1734183181437,0.410214,101170.0,101160.0,0.5873269]
[1734183181635,0.410214,101170.0,101160.0,0.82393097]
[1734183181839,0.410214,101170.0,101160.0,0.82393094]
[1734183182437,0.410214,101170.0,101160.0,0.82397786]
[1734183183847,0.410214,101170.0,101160.0,0.82399466]
[1734183185044,0.410214,101170.0,101160.0,0.58737382]
[1734183186533,0.410214,101170.0,101160.0,2.08737382]
[1734183186739,0.3608,101170.0,101160.0,2.18168611]
[1734183187834,0.410214,101170.0,101160.0,2.18168611]
[1734183192148,0.49856835,101170.0,101160.0,0.53795582]
[1734183192349,0.88568644,101170.0,101160.0,0.2367232]
[1734183192549,0.049419,101160.0,101150.0,0.1459232]
[1734183192847,0.616314,101160.0,101150.0,0.1459232]
[1734183193243,0.62233709,101160.0,101150.0,0.1459232]
[1734183195149,0.5280248,101160.0,101150.0,0.1459232]
[1734183195848,0.72110791,101160.0,101150.0,0.1459232]
[1734183196050,0.56755611,101160.0,101140.0,1.50148302]
[1734183196360,0.72885113,101150.0,101140.0,1.50148302]
[1734183196650,0.61112134,101150.0,101140.0,0.00148302]
[1734183196845,0.72885113,101150.0,101140.0,0.00148302]
[1734183197041,0.72885113,101150.0,101140.0,1.50198302]
[1734183197245,0.61112134,101150.0,101140.0,0.00198302]
[1734183198159,0.61112134,101150.0,101140.0,0.00148302]
[1734183198956,0.61112134,101150.0,101140.0,0.00198302]
[1734183199947,0.49852134,101150.0,101140.0,0.06178302]
[1734183200145,0.410224,101150.0,101140.0,0.06178302]
[1734183200345,0.410224,101150.0,101140.0,0.11121202]
[1734183200747,0.410224,101150.0,101140.0,0.50125366]
[1734183200952,0.410224,101150.0,101140.0,0.79481048]
[1734183202253,0.41022,101160.0,101150.0,0.049424]
[1734183202453,0.41022,101160.0,101150.0,0.20173629]
[1734183202845,0.04942,101160.0,101150.0,0.73499971]
[1734183203251,0.04942,101160.0,101150.0,2.23499971]
[1734183203451,0.41022,101160.0,101150.0,2.23499971]
[1734183204553,0.04942,101160.0,101150.0,2.23499971]
[1734183205053,0.41022,101160.0,101150.0,2.23499971]
[1734183205359,0.04942,101160.0,101150.0,2.23499971]
[1734183205557,0.41022,101160.0,101150.0,2.09126342]
[1734183205859,0.41022,101160.0,101150.0,1.558]
[1734183206051,0.41022,101160.0,101150.0,2.0916681]
[1734183206455,0.3608,101160.0,101150.0,1.65231229]
[1734183206646,0.3608,101160.0,101150.0,2.23540623]
[1734183206847,0.49851234,101170.0,101160.0,0.049419]
[1734183207055,0.410215,101170.0,101160.0,0.25833129]
[1734183207259,0.049415,101170.0,101160.0,0.25833129]
[1734183207562,0.049415,101170.0,101160.0,0.79211172]
[1734183207858,0.410215,101170.0,101160.0,0.79211172]
[1734183208063,0.049415,101170.0,101160.0,0.79211172]
[1734183208252,0.410215,101170.0,101160.0,0.79211172]
[1734183210158,0.049415,101170.0,101160.0,0.79211172]
[1734183210559,0.410215,101170.0,101160.0,0.79211172]
[1734183210753,0.410215,101170.0,101160.0,0.59038043]
[1734183211359,0.410215,101170.0,101160.0,0.35232935]
[1734183213063,0.410215,101170.0,101160.0,0.40174835]
[1734183214166,0.410215,101170.0,101160.0,0.69641802]
[1734183214561,0.410215,101170.0,101160.0,2.19641802]
[1734183214960,0.410215,101170.0,101160.0,1.95874835]
[1734183215467,0.410215,101170.0,101160.0,2.29072454]
[1734183216157,0.049415,101170.0,101160.0,2.65111073]
[1734183216865,0.049415,101170.0,101160.0,2.29031073]
[1734183218761,0.45058072,101180.0,101160.0,2.24089173]
[1734183218963,0.49999272,101180.0,101170.0,0.111014]
[1734183219868,0.49999272,101180.0,101170.0,0.2883373]
[1734183222660,0.41169538,101180.0,101170.0,0.2883373]
[1734183224771,0.41169538,101180.0,101170.0,0.99900132]
[1734183224961,0.49999272,101180.0,101170.0,0.99900132]
[1734183225764,0.55879272,101180.0,101170.0,0.99900132]
[1734183226968,0.19799272,101180.0,101170.0,0.99900132]
[1734183227169,0.19799272,101180.0,101170.0,0.82167802]
[1734183227373,0.55879272,101180.0,101170.0,0.82167802]
[1734183227976,0.55879272,101180.0,101170.0,0.9990682]
[1734183228272,0.55879272,101180.0,101170.0,0.82167802]
[1734183229165,0.55879272,101180.0,101170.0,1.11740737]
[1734183229366,0.55879272,101180.0,101170.0,0.82167802]
[1734183230072,0.55879272,101180.0,101170.0,1.35534353]
[1734183230774,0.47049538,101180.0,101170.0,1.35534353]
[1734183231075,0.55879272,101180.0,101170.0,1.35534353]
[1734183231380,0.55879272,101180.0,101170.0,1.70968258]
[1734183233883,0.55879272,101180.0,101170.0,1.35534353]
[1734183234377,0.55879272,101180.0,101170.0,1.70968258]
[1734183234885,0.55879272,101180.0,101170.0,1.80399487]
[1734183235586,0.49999272,101180.0,101170.0,1.80399487]
[1734183236172,0.49999272,101180.0,101170.0,1.79250906]
[1734183236978,0.49999272,101180.0,101170.0,3.29250906]
[1734183237983,0.45058072,101180.0,101170.0,3.29250906]
[1734183238570,0.45058072,101180.0,101170.0,3.00826552]
[1734183239176,0.45058072,101180.0,101170.0,3.30445845]
[1734183240178,0.45075956,101180.0,101170.0,3.30587632]
[1734183240979,0.08995956,101180.0,101170.0,3.37048338]
[1734183241185,0.08995956,101180.0,101170.0,3.65448201]
[1734183241379,0.49868518,101180.0,101170.0,3.29368201]
[1734183241682,0.49868518,101180.0,101170.0,1.58835572]
[1734183241683,0.59299747,101180.0,101170.0,1.58835572]
[1734183241879,0.76846572,101180.0,101170.0,1.24512801]
[1734183242082,0.67415343,101180.0,101170.0,1.24512801]
[1734183242377,0.73313756,101180.0,101170.0,1.24512801]
[1734183243286,0.73313756,101180.0,101170.0,1.29454201]
[1734183243490,0.67416196,101180.0,101170.0,1.29454201]
[1734183244284,0.67416196,101180.0,101170.0,1.64997354]
[1734183244495,0.67416196,101180.0,101170.0,1.29497536]
[1734183245897,0.67416196,101180.0,101170.0,1.65040689]
[1734183246692,0.67416196,101180.0,101170.0,1.35420444]
[1734183247292,0.67416196,101180.0,101170.0,1.65048018]
[1734183247594,0.61666196,101180.0,101170.0,1.70838018]
[1734183248491,0.56725296,101180.0,101170.0,1.50638191]
[1734183248691,0.44928471,101180.0,101170.0,1.79085057]
[1734183248989,0.44928471,101180.0,101170.0,3.29085057]
[1734183250779,0.49869371,101180.0,101170.0,3.19653828]
[1734183253199,0.76707425,101180.0,101170.0,1.60101745]
[1734183253490,0.73698954,101180.0,101170.0,1.24558592]
[1734183253691,0.88444985,101180.0,101170.0,1.24558592]
[1734183253895,0.88444985,101180.0,101170.0,1.48261018]
[1734183255198,0.88444985,101180.0,101170.0,1.48300304]
[1734183255393,0.73698954,101180.0,101170.0,1.24597878]
[1734183256195,0.73698954,101180.0,101170.0,1.48298653]
[1734183256701,0.73698954,101180.0,101170.0,1.48294518]
[1734183257098,0.7664816,101180.0,101170.0,0.94767177]
[1734183258100,0.7664816,101180.0,101170.0,1.12541057]
[1734183258912,0.94343397,101180.0,101170.0,1.12541057]
[1734183259293,0.94343397,101180.0,101170.0,0.88840282]
[1734183259804,0.95402526,101180.0,101170.0,0.88840282]
[1734183260395,0.77707289,101180.0,101170.0,0.88840282]
[1734183260802,1.07707289,101180.0,101170.0,0.88840282]
[1734183262601,0.77707289,101180.0,101170.0,0.88840282]
[1734183262901,0.71867289,101180.0,101170.0,0.88840282]
[1734183266903,0.6243606,101180.0,101170.0,0.88840282]
[1734183267104,0.71867289,101180.0,101170.0,0.88840282]
[1734183268203,1.07947289,101180.0,101170.0,0.88840282]
[1734183268400,0.91846931,101180.0,101170.0,0.88840282]
[1734183268597,0.88892868,101180.0,101170.0,1.23741057]
[1734183268795,0.97737445,101180.0,101170.0,1.23741057]
[1734183268994,0.97737445,101180.0,101170.0,1.11497177]
[1734183269200,0.97737445,101180.0,101170.0,1.4112336]
[1734183270497,0.97737445,101180.0,101170.0,1.65039098]
[1734183270706,0.97737445,101180.0,101170.0,1.11497177]
[1734183272002,0.88892868,101180.0,101170.0,1.11497177]
[1734183273103,0.88892868,101180.0,101170.0,1.16438577]
[1734183274208,0.6166012,101180.0,101170.0,1.6999433]
[1734183274506,0.6166012,101180.0,101170.0,1.69994246]
[1734183275413,0.49868152,101180.0,101170.0,1.46293471]
[1734183275808,0.6166012,101180.0,101170.0,1.46293471]
[1734183276210,0.6166012,101180.0,101170.0,1.41352071]
[1734183276414,0.71091349,101180.0,101170.0,1.65030995]
[1734183276708,0.71091349,101180.0,101170.0,1.41101509]
[1734183277114,0.6166012,101180.0,101170.0,1.11475326]
[1734183277511,0.6166012,101180.0,101170.0,1.41101509]
[1734183277711,0.52812868,101180.0,101170.0,1.11475326]
[1734183278017,0.61658825,101180.0,101170.0,1.11475326]
[1734183278315,0.61658825,101180.0,101170.0,1.41101509]
[1734183278507,0.52812868,101180.0,101170.0,1.11475326]
[1734183279016,0.61659694,101180.0,101170.0,1.46042909]
[1734183279514,0.61659694,101180.0,101170.0,1.6998343]
[1734183280209,0.97739694,101180.0,101170.0,1.6504203]
[1734183280405,0.88892868,101180.0,101170.0,1.11475326]
[1734183281619,0.98324097,101180.0,101170.0,1.41101509]
[1734183282218,0.88892868,101180.0,101170.0,1.41101509]
[1734183282514,1.03638899,101180.0,101170.0,1.65053394]
[1734183285323,1.09794756,101180.0,101170.0,1.65053394]
[1734183285616,0.95048725,101180.0,101170.0,1.41101509]
[1734183286821,0.95048725,101180.0,101170.0,1.11475326]
[1734183287411,0.95048725,101180.0,101170.0,1.41101509]
[1734183287613,0.95048725,101180.0,101170.0,1.11475326]
[1734183288516,0.95048725,101180.0,101170.0,1.41101509]
[1734183289108,1.09794756,101180.0,101170.0,1.11475326]
[1734183289424,1.15950613,101180.0,101170.0,0.94745326]
[1734183289716,1.21240613,101180.0,101170.0,0.94745326]
[1734183289915,1.21240613,101180.0,101170.0,1.1251909]
[1734183290619,1.09448645,101180.0,101170.0,1.1251909]
[1734183291521,1.09448645,101180.0,101170.0,0.94745326]
[1734183292125,1.09448645,101180.0,101170.0,1.12520635]
[1734183293022,1.27143882,101180.0,101170.0,1.12520635]
[1734183294227,1.09448645,101180.0,101170.0,1.12520635]
[1734183294624,1.03292788,101180.0,101170.0,1.12520635]
[1734183295124,1.03292788,101180.0,101170.0,0.94745326]
[1734183296825,1.09448645,101180.0,101170.0,0.94745326]
[1734183300325,1.03292788,101180.0,101170.0,0.94745326]
[1734183300718,0.98002788,101180.0,101170.0,0.94745326]
[1734183300916,0.98002788,101180.0,101170.0,1.06405326]
[1734183301115,0.98002788,101180.0,101170.0,2.56405326]
[1734183301318,1.04158645,101180.0,101170.0,2.56405326]
[1734183301727,0.98002788,101180.0,101170.0,2.56405326]
[1734183302131,1.04158645,101180.0,101170.0,2.56405326]
[1734183302423,1.04158645,101180.0,101170.0,0.94745326]
[1734183302624,0.91846931,101180.0,101170.0,0.99686726]
[1734183302824,0.97766448,101180.0,101170.0,1.82683777]
[1734183303125,0.97766448,101180.0,101170.0,1.88223777]
[1734183303429,0.97766448,101180.0,101170.0,1.58597594]
[1734183303430,0.8595721,101180.0,101170.0,1.58597594]
[1734183304337,0.8595721,101180.0,101170.0,1.88218169]
[1734183304627,0.8595721,101180.0,101170.0,1.58597594]
[1734183305024,0.8595721,101180.0,101170.0,1.88215655]
[1734183306325,0.4987721,101180.0,101170.0,1.88215655]
[1734183306522,0.1379721,101180.0,101170.0,1.58597594]
[1734183306729,0.049409,101180.0,101170.0,1.87169717]
[1734183307030,0.61686148,101190.0,101180.0,0.049409]
[1734183307230,0.61686148,101190.0,101180.0,0.64728811]
[1734183307734,0.61686148,101190.0,101180.0,1.35795213]
[1734183307920,0.4987691,101190.0,101180.0,1.35795213]
[1734183309224,0.4987691,101190.0,101180.0,1.59472515]
[1734183309425,0.4987691,101190.0,101180.0,3.09472515]
[1734183309728,0.56032767,101190.0,101180.0,1.48375758]
[1734183310025,0.4987691,101190.0,101180.0,1.54531615]
[1734183310538,0.4987691,101190.0,101180.0,1.59472515]
[1734183311830,0.4987691,101190.0,101180.0,1.48375758]
[1734183312035,0.56032767,101190.0,101180.0,1.48375758]
[1734183312233,0.4987691,101190.0,101180.0,1.54531615]
[1734183312737,0.4987691,101190.0,101180.0,1.00899561]
[1734183313133,0.4987691,101190.0,101180.0,1.05840461]
[1734183313639,0.4987691,101190.0,101180.0,1.5894015]
[1734183314448,0.4987691,101190.0,101180.0,1.35451733]
[1734183315066,0.049406,101190.0,101180.0,1.58906991]
[1734183315266,0.410206,101190.0,101180.0,1.58906991]
[1734183315453,0.410206,101190.0,101180.0,1.53966091]
[1734183315655,0.4987691,101190.0,101180.0,2.68642397]
[1734183315960,0.4987691,101190.0,101180.0,2.50899561]
[1734183316158,0.4987691,101190.0,101180.0,1.2358385]
[1734183316554,0.4987691,101190.0,101180.0,1.05840461]
[1734183316764,0.4987691,101190.0,101180.0,2.55840461]
[1734183317157,0.4987691,101190.0,101180.0,1.24354976]
[1734183317462,0.4987691,101190.0,101180.0,1.23582343]
[1734183317668,0.4987691,101190.0,101180.0,2.55840461]
[1734183317859,0.410206,101190.0,101180.0,3.08894376]
[1734183318461,0.410206,101190.0,101180.0,3.08894371]
[1734183319367,0.410206,101190.0,101180.0,2.85451733]
[1734183319565,0.4987691,101190.0,101180.0,2.55840461]
[1734183320265,0.4987691,101190.0,101180.0,0.94743704]
[1734183320266,0.56032767,101190.0,101180.0,0.94743704]
[1734183320460,0.73322005,101190.0,101180.0,1.12484335]
[1734183320868,0.64465695,101190.0,101180.0,1.12484335]
[1734183321377,0.73307956,101190.0,101180.0,0.88807033]
[1734183321563,0.64465695,101190.0,101180.0,0.88807033]
[1734183322567,0.64465695,101190.0,101180.0,1.12484335]
[1734183323065,0.64465695,101190.0,101180.0,0.88807033]
[1734183323670,0.64465695,101190.0,101180.0,1.12484335]
[1734183324062,0.70155695,101190.0,101180.0,1.12484335]
[1734183326763,1.26943582,101190.0,101170.0,0.41060211]
[1734183327065,1.26943582,101190.0,101160.0,0.65206425]
[1734183327066,0.049414,101170.0,101160.0,0.23677302]
[1734183327270,0.049419,101160.0,101150.0,0.53338574]
[1734183327573,0.56024224,101160.0,101150.0,0.76757681]
[1734183328165,0.56024224,101160.0,101150.0,0.76707681]
[1734183328575,0.47177757,101160.0,101150.0,0.81650081]
[1734183328775,0.410219,101160.0,101150.0,0.87805938]
[1734183329270,0.410219,101160.0,101150.0,0.87855938]
[1734183330171,0.3608,101160.0,101150.0,0.87805938]
[1734183330475,0.049415,101170.0,101160.0,0.049419]
[1734183330677,0.049415,101170.0,101160.0,0.81061924]
[1734183331175,0.049415,101170.0,101160.0,1.16605077]
[1734183331673,0.049415,101170.0,101160.0,0.81061924]
[1734183332566,0.56023824,101170.0,101160.0,0.53239403]
[1734183332870,0.61403824,101170.0,101160.0,0.23664343]
[1734183333269,0.82096728,101170.0,101160.0,0.23664343]
[1734183333472,0.049419,101160.0,101150.0,0.58969403]
[1734183333671,0.410219,101160.0,101150.0,0.8232529]
[1734183334171,0.410219,101160.0,101150.0,0.8227529]
[1734183334672,0.50405234,101160.0,101150.0,0.7659529]
[1734183334875,0.50405234,101160.0,101150.0,0.23664343]
[1734183335078,0.59251701,101160.0,101150.0,0.23664343]
[1734183335376,0.59251701,101160.0,101150.0,0.23714343]
[1734183335575,0.59251701,101160.0,101150.0,0.0005]
[1734183336072,0.71047128,101160.0,101150.0,0.0005]
[1734183336275,0.049424,101150.0,101140.0,1.84982615]
[1734183336577,0.410224,101150.0,101140.0,1.84982615]
[1734183336980,0.410224,101150.0,101140.0,1.89925515]
[1734183340179,0.410224,101150.0,101140.0,1.89975515]
[1734183341279,0.410224,101150.0,101140.0,1.89925515]
[1734183342179,0.410224,101150.0,101140.0,1.89975515]
[1734183343281,0.410224,101150.0,101140.0,1.89925515]
[1734183344178,0.410224,101150.0,101140.0,1.89975515]
[1734183345277,0.410224,101150.0,101140.0,1.89925515]
[1734183346178,0.3608,101150.0,101140.0,1.89975515]
[1734183346379,0.3608,101160.0,101150.0,0.049424]
[1734183346590,0.61663494,101170.0,101160.0,0.049419]
[1734183346777,0.49868067,101170.0,101160.0,0.158819]
[1734183347087,0.49868067,101170.0,101160.0,0.39509854]
[1734183347088,0.410216,101170.0,101160.0,0.39509854]